[Event "Titled Tuesday Blitz March 08 Late 2022"]
[White "Rangel, Daniel"]
[Black "Maghsoodloo, Parham"]
[WhiteFideId "2124475"]
[BlackFideId "12539929"]
[WhiteElo "2225"]
[BlackElo "2630"]
[Result "0-1"]
[Round "02"]
[TimeControl "180+1"]
[Date "2022.03.09"]
[WhiteClock "0:00:06"]
[BlackClock "0:00:13"]

1. c4 {[%clk 0:03:00]}  e5 {[%clk 0:02:59]} 2. g3 {[%clk 0:03:01]}  Nc6 {[%clk 0:02:59]} 3. Bg2 {[%clk 0:03:01]}  g6 {[%clk 0:02:59]} 4. Nc3 {[%clk 0:03:02]}  Bg7 {[%clk 0:02:59]} 5. e3 {[%clk 0:03:03]}  Nge7 {[%clk 0:02:59]} 6. Nge2 {[%clk 0:03:03]}  O-O {[%clk 0:03:00]} 7. O-O {[%clk 0:03:04]}  a6 {[%clk 0:02:59]} 8. Nd5 {[%clk 0:03:04]}  Rb8 {[%clk 0:02:59]} 9. Nec3 {[%clk 0:03:03]}  b5 {[%clk 0:02:59]} 10. cxb5 {[%clk 0:03:03]}  axb5 {[%clk 0:03:00]} 11. a4 {[%clk 0:03:02]}  b4 {[%clk 0:03:00]} 12. Nb5 {[%clk 0:03:00]}  Nxd5 {[%clk 0:03:00]} 13. Bxd5 {[%clk 0:03:01]}  Ne7 {[%clk 0:03:00]} 14. Bg2 {[%clk 0:02:58]}  c6 {[%clk 0:03:00]} 15. Nd6 {[%clk 0:02:57]}  Ba6 {[%clk 0:03:00]} 16. Re1 {[%clk 0:02:56]}  Qc7 {[%clk 0:02:59]} 17. Ne4 {[%clk 0:02:54]}  c5 {[%clk 0:02:59]} 18. Qf3 {[%clk 0:02:39]}  f5 {[%clk 0:02:55]} 19. Ng5 {[%clk 0:02:37]}  e4 {[%clk 0:02:54]} 20. Qd1 {[%clk 0:02:34]}  b3 {[%clk 0:02:50]} 21. f3 {[%clk 0:02:25]}  h6 {[%clk 0:02:44]} 22. Nh3 {[%clk 0:02:24]}  d5 {[%clk 0:02:23]} 23. Nf2 {[%clk 0:02:22]}  Bd3 {[%clk 0:02:19]} 24. Nxd3 {[%clk 0:02:11]}  exd3 {[%clk 0:02:19]} 25. f4 {[%clk 0:02:10]}  c4 {[%clk 0:02:15]} 26. g4 {[%clk 0:02:07]}  Qd7 {[%clk 0:02:14]} 27. Bh3 {[%clk 0:02:00]}  Nc6 {[%clk 0:02:10]} 28. Kh1 {[%clk 0:01:46]}  Nb4 {[%clk 0:02:06]} 29. Rg1 {[%clk 0:01:46]}  Kh7 {[%clk 0:02:01]} 30. gxf5 {[%clk 0:01:36]}  gxf5 {[%clk 0:02:00]} 31. Qh5 {[%clk 0:01:37]}  Rb6 {[%clk 0:01:58]} 32. a5 {[%clk 0:01:36]}  Ra6 {[%clk 0:01:57]} 33. Qf3 {[%clk 0:00:56]}  Nc2 {[%clk 0:01:55]} 34. Rb1 {[%clk 0:00:52]}  Rxa5 {[%clk 0:01:52]} 35. Bg2 {[%clk 0:00:50]}  Nb4 {[%clk 0:01:41]} 36. Qg3 {[%clk 0:00:47]}  Nc6 {[%clk 0:01:38]} 37. Bf3 {[%clk 0:00:47]}  Rf6 {[%clk 0:01:11]} 38. Qg2 {[%clk 0:00:41]}  Nb4 {[%clk 0:01:04]} 39. Bh5 {[%clk 0:00:41]}  Raa6 {[%clk 0:01:04]} 40. h4 {[%clk 0:00:40]}  Qe7 {[%clk 0:00:59]} 41. Be8 {[%clk 0:00:38]}  Qe4 {[%clk 0:00:43]} 42. Bh5 {[%clk 0:00:28]}  Rg6 {[%clk 0:00:20]} 43. Bxg6+ {[%clk 0:00:24]}  Rxg6 {[%clk 0:00:20]} 44. Qxe4 {[%clk 0:00:22]}  Rxg1+ {[%clk 0:00:12]} 45. Kxg1 {[%clk 0:00:22]}  fxe4 {[%clk 0:00:12]} 46. Kf2 {[%clk 0:00:20]}  Kg6 {[%clk 0:00:12]} 47. Kg3 {[%clk 0:00:15]}  h5 {[%clk 0:00:11]} 48. Ra1 {[%clk 0:00:12]}  Na2 {[%clk 0:00:12]} 49. Kf2 {[%clk 0:00:07]}  Kf5 {[%clk 0:00:12]} 50. Kg3 {[%clk 0:00:07]}  Bf6 {[%clk 0:00:12]} 51. Kh3 {[%clk 0:00:07]}  d4 {[%clk 0:00:08]} 52. exd4 {[%clk 0:00:06]}  Bxd4 {[%clk 0:00:09]} 53. Kg3 {[%clk 0:00:06]}  Bc5 {[%clk 0:00:08]} 54. Rb1 {[%clk 0:00:06]}  Bd6 {[%clk 0:00:08]} 55. Kh3 {[%clk 0:00:06]}  Bxf4 {[%clk 0:00:09]} 56. Ra1 {[%clk 0:00:06]}  Be5 {[%clk 0:00:09]} 57. Rb1 {[%clk 0:00:06]}  Kf4 {[%clk 0:00:09]} 58. Ra1 {[%clk 0:00:06]}  Kf3 {[%clk 0:00:09]} 59. Rb1 {[%clk 0:00:06]}  Ke2 {[%clk 0:00:09]} 60. Ra1 {[%clk 0:00:07]}  Kd1 {[%clk 0:00:09]} 61. Kg2 {[%clk 0:00:07]}  Kc2 {[%clk 0:00:09]} 62. Kf2 {[%clk 0:00:07]}  Bf4 {[%clk 0:00:10]} 63. Kg2 {[%clk 0:00:06]}  Nxc1 {[%clk 0:00:10]} 64. Ra5 {[%clk 0:00:05]}  Bxd2 {[%clk 0:00:10]} 65. Rxh5 {[%clk 0:00:05]}  e3 {[%clk 0:00:10]} 66. Re5 {[%clk 0:00:05]}  e2 {[%clk 0:00:11]} 67. Kf2 {[%clk 0:00:04]}  e1=Q+ {[%clk 0:00:11]} 68. Rxe1 {[%clk 0:00:05]}  Bxe1+ {[%clk 0:00:12]} 69. Kxe1 {[%clk 0:00:06]}  d2+ {[%clk 0:00:13]} 0-1


[Site "https://www.chess.com"]

[Event "Titled Tuesday Blitz March 08 Late 2022"]
[White "Rasulov, Vugar"]
[Black "Holt, Conrad"]
[WhiteFideId "13402390"]
[BlackFideId "2034387"]
[WhiteElo "2560"]
[BlackElo "2586"]
[Result "1-0"]
[Round "02"]
[TimeControl "180+1"]
[Date "2022.03.08"]
[WhiteClock "0:00:08"]
[BlackClock "0:00:04"]

1. d4 {[%clk 0:03:00]}  d5 {[%clk 0:03:00]} 2. c4 {[%clk 0:03:00]}  c6 {[%clk 0:03:00]} 3. Nf3 {[%clk 0:03:01]}  Nf6 {[%clk 0:03:00]} 4. Qc2 {[%clk 0:03:01]}  dxc4 {[%clk 0:03:00]} 5. e4 {[%clk 0:03:02]}  b5 {[%clk 0:02:58]} 6. b3 {[%clk 0:03:02]}  cxb3 {[%clk 0:02:57]} 7. axb3 {[%clk 0:03:03]}  e6 {[%clk 0:02:56]} 8. Bd2 {[%clk 0:03:03]}  a5 {[%clk 0:02:54]} 9. Bd3 {[%clk 0:03:04]}  Bb7 {[%clk 0:02:48]} 10. O-O {[%clk 0:03:04]}  Be7 {[%clk 0:02:47]} 11. Rc1 {[%clk 0:02:58]}  h6 {[%clk 0:02:46]} 12. Nc3 {[%clk 0:02:55]}  Na6 {[%clk 0:02:45]} 13. e5 {[%clk 0:02:55]}  Nb4 {[%clk 0:02:34]} 14. exf6 {[%clk 0:02:55]}  Nxc2 {[%clk 0:02:34]} 15. fxe7 {[%clk 0:02:56]}  Qxe7 {[%clk 0:02:34]} 16. Rxc2 {[%clk 0:02:56]}  O-O {[%clk 0:02:31]} 17. Ne4 {[%clk 0:02:56]}  a4 {[%clk 0:02:23]} 18. b4 {[%clk 0:02:56]}  c5 {[%clk 0:02:15]} 19. bxc5 {[%clk 0:02:45]}  Rfb8 {[%clk 0:02:08]} 20. Bb4 {[%clk 0:02:42]}  Bd5 {[%clk 0:02:04]} 21. h3 {[%clk 0:02:37]}  a3 {[%clk 0:01:45]} 22. Ne5 {[%clk 0:02:15]}  Ra4 {[%clk 0:01:40]} 23. Nc3 {[%clk 0:01:49]}  Rxb4 {[%clk 0:01:32]} 24. Nxd5 {[%clk 0:01:50]}  exd5 {[%clk 0:01:25]} 25. Nc6 {[%clk 0:01:50]}  Qf6 {[%clk 0:01:22]} 26. Nxb4 {[%clk 0:01:47]}  Qxd4 {[%clk 0:01:22]} 27. Rb1 {[%clk 0:01:47]}  a2 {[%clk 0:01:00]} 28. Rxa2 {[%clk 0:01:42]}  Qxc5 {[%clk 0:00:59]} 29. Bf1 {[%clk 0:01:35]}  Qd6 {[%clk 0:00:34]} 30. Rd2 {[%clk 0:01:17]}  d4 {[%clk 0:00:33]} 31. Nc2 {[%clk 0:01:17]}  Qg6 {[%clk 0:00:24]} 32. Rb4 {[%clk 0:01:05]}  Rc8 {[%clk 0:00:20]} 33. Nxd4 {[%clk 0:01:00]}  Rc1 {[%clk 0:00:20]} 34. Ne2 {[%clk 0:01:00]}  Re1 {[%clk 0:00:12]} 35. Ng3 {[%clk 0:01:00]}  Qc6 {[%clk 0:00:10]} 36. Rdb2 {[%clk 0:00:54]}  g6 {[%clk 0:00:08]} 37. Rxb5 {[%clk 0:00:54]}  h5 {[%clk 0:00:08]} 38. h4 {[%clk 0:00:52]}  Qf6 {[%clk 0:00:07]} 39. R2b4 {[%clk 0:00:43]}  Rd1 {[%clk 0:00:06]} 40. Rb6 {[%clk 0:00:39]}  Qe7 {[%clk 0:00:05]} 41. Rf4 {[%clk 0:00:32]}  Rd6 {[%clk 0:00:04]} 42. Rxd6 {[%clk 0:00:25]}  Qxd6 {[%clk 0:00:04]} 43. Re4 {[%clk 0:00:26]}  Qd8 {[%clk 0:00:04]} 44. Ne2 {[%clk 0:00:23]}  Kg7 {[%clk 0:00:05]} 45. g3 {[%clk 0:00:23]}  Qf6 {[%clk 0:00:05]} 46. Re3 {[%clk 0:00:24]}  Qa1 {[%clk 0:00:06]} 47. Nf4 {[%clk 0:00:23]}  Qc1 {[%clk 0:00:06]} 48. Kg2 {[%clk 0:00:23]}  Qc6+ {[%clk 0:00:06]} 49. Kh2 {[%clk 0:00:23]}  Qc2 {[%clk 0:00:07]} 50. Rf3 {[%clk 0:00:20]}  Qc1 {[%clk 0:00:07]} 51. Bg2 {[%clk 0:00:21]}  Qc2 {[%clk 0:00:08]} 52. Nd3 {[%clk 0:00:20]}  Qc4 {[%clk 0:00:07]} 53. Ne5 {[%clk 0:00:19]}  Qd4 {[%clk 0:00:06]} 54. Nxf7 {[%clk 0:00:19]}  Kh7 {[%clk 0:00:05]} 55. Ng5+ {[%clk 0:00:20]}  Kh6 {[%clk 0:00:05]} 56. Rf4 {[%clk 0:00:17]}  Qc3 {[%clk 0:00:04]} 57. Ne4 {[%clk 0:00:11]}  Qa1 {[%clk 0:00:04]} 58. Rf7 {[%clk 0:00:10]}  Qe1 {[%clk 0:00:04]} 59. f4 {[%clk 0:00:06]}  Qe2 {[%clk 0:00:03]} 60. Nf6 {[%clk 0:00:06]}  g5 {[%clk 0:00:02]} 61. fxg5+ {[%clk 0:00:07]}  Kg6 {[%clk 0:00:03]} 62. Rd7 {[%clk 0:00:06]}  Kf5 {[%clk 0:00:03]} 63. Rd5+ {[%clk 0:00:06]}  Ke6 {[%clk 0:00:03]} 64. Rd4 {[%clk 0:00:05]}  Kf5 {[%clk 0:00:03]} 65. Rf4+ {[%clk 0:00:06]}  Kg6 {[%clk 0:00:04]} 66. Kh3 {[%clk 0:00:06]}  Qe1 {[%clk 0:00:04]} 67. Be4+ {[%clk 0:00:07]}  Kg7 {[%clk 0:00:04]} 68. Nxh5+ {[%clk 0:00:07]}  Kg8 {[%clk 0:00:04]} 69. Bd5+ {[%clk 0:00:07]}  Kh7 {[%clk 0:00:04]} 70. Rf7+ {[%clk 0:00:07]}  Kg6 {[%clk 0:00:03]} 71. Rf6+ {[%clk 0:00:07]}  Kh7 {[%clk 0:00:04]} 72. g6+ {[%clk 0:00:07]}  Kh6 {[%clk 0:00:04]} 73. g7+ {[%clk 0:00:08]}  Kh7 {[%clk 0:00:04]} 74. g8=Q# {[%clk 0:00:08]} 1-0


[Site "https://www.chess.com"]

[Event "Titled Tuesday Blitz March 08 Late 2022"]
[White "Romero Ruscalleda, Josep"]
[Black "Dounis, Alexandros"]
[WhiteFideId "2231859"]
[BlackFideId "4213238"]
[WhiteElo "2311"]
[BlackElo "2204"]
[Result "0-1"]
[Round "02"]
[TimeControl "180+1"]
[Date "2022.03.09"]
[WhiteClock "0:01:10"]
[BlackClock "0:01:25"]

1. e4 {[%clk 0:03:00]}  e5 {[%clk 0:02:53]} 2. Nf3 {[%clk 0:03:00]}  Nc6 {[%clk 0:02:52]} 3. Bc4 {[%clk 0:02:59]}  Nf6 {[%clk 0:02:51]} 4. d4 {[%clk 0:02:59]}  exd4 {[%clk 0:02:47]} 5. e5 {[%clk 0:02:59]}  d5 {[%clk 0:02:47]} 6. Bb5 {[%clk 0:02:59]}  Ne4 {[%clk 0:02:47]} 7. Nxd4 {[%clk 0:02:59]}  Bc5 {[%clk 0:02:47]} 8. Be3 {[%clk 0:02:59]}  O-O {[%clk 0:02:46]} 9. Bxc6 {[%clk 0:02:58]}  bxc6 {[%clk 0:02:44]} 10. O-O {[%clk 0:02:59]}  Bd7 {[%clk 0:02:16]} 11. Nd2 {[%clk 0:02:56]}  Nxd2 {[%clk 0:02:10]} 12. Qxd2 {[%clk 0:02:56]}  Qe7 {[%clk 0:02:09]} 13. Qc3 {[%clk 0:02:56]}  Bb6 {[%clk 0:02:04]} 14. Nb3 {[%clk 0:02:55]}  f6 {[%clk 0:01:56]} 15. exf6 {[%clk 0:02:47]}  Qxf6 {[%clk 0:01:56]} 16. Qxf6 {[%clk 0:02:30]}  Rxf6 {[%clk 0:01:57]} 17. Bc5 {[%clk 0:02:28]}  Re8 {[%clk 0:01:51]} 18. Rfe1 {[%clk 0:02:27]}  Rfe6 {[%clk 0:01:50]} 19. Kf1 {[%clk 0:02:14]}  Bc8 {[%clk 0:01:49]} 20. f3 {[%clk 0:02:14]}  Ba6+ {[%clk 0:01:48]} 21. Kf2 {[%clk 0:02:15]}  Re2+ {[%clk 0:01:48]} 22. Rxe2 {[%clk 0:02:13]}  Rxe2+ {[%clk 0:01:49]} 23. Kg3 {[%clk 0:02:12]}  Rxc2 {[%clk 0:01:49]} 24. Ba3 {[%clk 0:02:08]}  c5 {[%clk 0:01:41]} 25. Re1 {[%clk 0:01:59]}  Kf7 {[%clk 0:01:41]} 26. Re5 {[%clk 0:01:50]}  c4 {[%clk 0:01:35]} 27. Re7+ {[%clk 0:01:48]}  Kf6 {[%clk 0:01:33]} 28. Na1 {[%clk 0:01:11]}  Rc1 {[%clk 0:01:27]} 29. b3 {[%clk 0:01:11]}  Rxa1 {[%clk 0:01:25]} 30. Bb2+ {[%clk 0:01:10]}  Kxe7 {[%clk 0:01:25]} 0-1


[Site "https://www.chess.com"]

[Event "Titled Tuesday Blitz March 08 Late 2022"]
[White "Ronka, Erik"]
[Black "Maranhao,Jose Renato Ruiz"]
[WhiteFideId "505080"]
[BlackFideId "2135175"]
[WhiteElo "2264"]
[BlackElo "1970"]
[Result "1-0"]
[Round "02"]
[TimeControl "180+1"]
[Date "2022.03.09"]
[WhiteClock "0:02:31"]
[BlackClock "0:00:01"]

1. e4 {[%clk 0:03:00]}  c6 {[%clk 0:03:00]} 2. Nf3 {[%clk 0:03:00]}  d5 {[%clk 0:03:01]} 3. Nc3 {[%clk 0:03:01]}  Bg4 {[%clk 0:02:59]} 4. h3 {[%clk 0:03:01]}  Bxf3 {[%clk 0:02:57]} 5. Qxf3 {[%clk 0:03:01]}  e6 {[%clk 0:02:42]} 6. d4 {[%clk 0:03:02]}  Bb4 {[%clk 0:02:36]} 7. Bd3 {[%clk 0:02:59]}  dxe4 {[%clk 0:02:29]} 8. Qxe4 {[%clk 0:02:55]}  Nf6 {[%clk 0:02:28]} 9. Qh4 {[%clk 0:02:54]}  Nd5 {[%clk 0:01:46]} 10. Bg5 {[%clk 0:02:43]}  Qa5 {[%clk 0:01:43]} 11. O-O {[%clk 0:02:44]}  Nxc3 {[%clk 0:01:39]} 12. bxc3 {[%clk 0:02:45]}  Bxc3 {[%clk 0:01:39]} 13. Rab1 {[%clk 0:02:45]}  h6 {[%clk 0:01:05]} 14. Be3 {[%clk 0:02:41]}  b6 {[%clk 0:00:31]} 15. Qg4 {[%clk 0:02:41]}  Kf8 {[%clk 0:00:20]} 16. f4 {[%clk 0:02:39]}  Qxa2 {[%clk 0:00:15]} 17. f5 {[%clk 0:02:36]}  Kg8 {[%clk 0:00:14]} 18. f6 {[%clk 0:02:33]}  g5 {[%clk 0:00:04]} 19. Bxg5 {[%clk 0:02:32]}  Kf8 {[%clk 0:00:03]} 20. Bxh6+ {[%clk 0:02:32]}  Ke8 {[%clk 0:00:01]} 21. Qg7 {[%clk 0:02:31]} 1-0


[Site "https://www.chess.com"]

[Event "Titled Tuesday Blitz March 08 Late 2022"]
[White "Rorrer, Grayson"]
[Black "Koellner, Ruben Gideon"]
[WhiteFideId "30944996"]
[BlackFideId "12993093"]
[WhiteElo "2122"]
[BlackElo "2386"]
[Result "0-1"]
[Round "02"]
[TimeControl "180+1"]
[Date "2022.03.09"]
[WhiteClock "0:00:01"]
[BlackClock "0:00:04"]

1. e4 {[%clk 0:03:00]}  d6 {[%clk 0:03:00]} 2. d4 {[%clk 0:03:00]}  Nf6 {[%clk 0:03:01]} 3. Nc3 {[%clk 0:03:00]}  e5 {[%clk 0:03:02]} 4. Nf3 {[%clk 0:03:00]}  Nbd7 {[%clk 0:03:02]} 5. Bc4 {[%clk 0:03:01]}  Be7 {[%clk 0:03:02]} 6. O-O {[%clk 0:03:01]}  c6 {[%clk 0:03:03]} 7. a4 {[%clk 0:02:51]}  h6 {[%clk 0:03:03]} 8. h3 {[%clk 0:02:51]}  Qc7 {[%clk 0:03:03]} 9. Qe2 {[%clk 0:02:48]}  Nf8 {[%clk 0:03:03]} 10. d5 {[%clk 0:02:49]}  g5 {[%clk 0:03:03]} 11. Rd1 {[%clk 0:02:49]}  Ng6 {[%clk 0:03:03]} 12. Ba2 {[%clk 0:02:42]}  g4 {[%clk 0:03:02]} 13. hxg4 {[%clk 0:02:42]}  Bxg4 {[%clk 0:03:03]} 14. dxc6 {[%clk 0:02:31]}  bxc6 {[%clk 0:03:00]} 15. Qc4 {[%clk 0:02:32]}  Rh7 {[%clk 0:02:46]} 16. Nd5 {[%clk 0:02:15]}  Nxd5 {[%clk 0:02:46]} 17. exd5 {[%clk 0:02:15]}  Bxf3 {[%clk 0:02:47]} 18. gxf3 {[%clk 0:02:16]}  c5 {[%clk 0:02:45]} 19. c3 {[%clk 0:02:12]}  Rg7 {[%clk 0:02:44]} 20. Bxh6 {[%clk 0:02:07]}  Rh7 {[%clk 0:02:44]} 21. Be3 {[%clk 0:02:06]}  Qc8 {[%clk 0:02:44]} 22. Qg4 {[%clk 0:02:03]}  Qb8 {[%clk 0:02:13]} 23. Bc4 {[%clk 0:01:56]}  Rh4 {[%clk 0:02:11]} 24. Bb5+ {[%clk 0:01:40]}  Kf8 {[%clk 0:02:10]} 25. Qg3 {[%clk 0:01:39]}  a6 {[%clk 0:02:08]} 26. Bd3 {[%clk 0:01:39]}  Kg7 {[%clk 0:01:54]} 27. Rab1 {[%clk 0:01:31]}  Qh8 {[%clk 0:01:46]} 28. Kf1 {[%clk 0:01:31]}  Qh5 {[%clk 0:01:38]} 29. Bxg6 {[%clk 0:01:20]}  fxg6 {[%clk 0:01:36]} 30. Ke2 {[%clk 0:01:20]}  Rf8 {[%clk 0:01:31]} 31. Rg1 {[%clk 0:01:11]}  e4 {[%clk 0:01:28]} 32. Kd2 {[%clk 0:01:05]}  Rxf3 {[%clk 0:01:26]} 33. Qg2 {[%clk 0:01:04]}  Rh2 {[%clk 0:01:24]} 34. Qf1 {[%clk 0:01:03]}  Qf5 {[%clk 0:01:15]} 35. Rg2 {[%clk 0:00:49]}  Qxd5+ {[%clk 0:01:10]} 36. Kc1 {[%clk 0:00:40]}  Rhh3 {[%clk 0:00:58]} 37. Qg1 {[%clk 0:00:35]}  Qh5 {[%clk 0:00:54]} 38. Kc2 {[%clk 0:00:32]}  Bf6 {[%clk 0:00:35]} 39. Qd1 {[%clk 0:00:26]}  Rh2 {[%clk 0:00:18]} 40. Qg1 {[%clk 0:00:18]}  Rxg2 {[%clk 0:00:17]} 41. Qxg2 {[%clk 0:00:19]}  Qh3 {[%clk 0:00:17]} 42. Qg1 {[%clk 0:00:17]}  Qe6 {[%clk 0:00:14]} 43. Qf1 {[%clk 0:00:15]}  d5 {[%clk 0:00:13]} 44. Rd1 {[%clk 0:00:13]}  d4 {[%clk 0:00:11]} 45. cxd4 {[%clk 0:00:14]}  cxd4 {[%clk 0:00:12]} 46. Rxd4 {[%clk 0:00:13]}  Bxd4 {[%clk 0:00:10]} 47. Bxd4+ {[%clk 0:00:13]}  Kf7 {[%clk 0:00:11]} 48. Qh1 {[%clk 0:00:12]}  Qc4+ {[%clk 0:00:10]} 49. Bc3 {[%clk 0:00:11]}  Rxf2+ {[%clk 0:00:08]} 50. Kb1 {[%clk 0:00:11]}  Qd3+ {[%clk 0:00:06]} 51. Ka2 {[%clk 0:00:11]}  Qf3 {[%clk 0:00:06]} 52. Qh7+ {[%clk 0:00:09]}  Ke6 {[%clk 0:00:06]} 53. Qxg6+ {[%clk 0:00:09]}  Kd5 {[%clk 0:00:07]} 54. Qg5+ {[%clk 0:00:06]}  Kc4 {[%clk 0:00:07]} 55. Qg8+ {[%clk 0:00:04]}  Kd3 {[%clk 0:00:08]} 56. Qd8+ {[%clk 0:00:04]}  Kc2 {[%clk 0:00:07]} 57. Qd4 {[%clk 0:00:04]}  Kc1 {[%clk 0:00:05]} 58. Qb4 {[%clk 0:00:01]}  Rc2 {[%clk 0:00:04]} 59. Qb3 {[%clk 0:00:01]}  Qd3 {[%clk 0:00:04]} 60. Qb4 {[%clk 0:00:01]}  e3 {[%clk 0:00:04]} 61. Qf4 {[%clk 0:00:01]}  Qxc3 {[%clk 0:00:04]} 0-1


[Site "https://www.chess.com"]

[Event "Titled Tuesday Blitz March 08 Late 2022"]
[White "Rostovtsev, Dmitry"]
[Black "Kujawski, Adam"]
[WhiteFideId "34278320"]
[BlackFideId "1100920"]
[WhiteElo "2694"]
[BlackElo "2338"]
[Result "1-0"]
[Round "02"]
[TimeControl "180+1"]
[Date "2022.03.09"]
[WhiteClock "0:01:56"]
[BlackClock "0:00:05"]

1. e4 {[%clk 0:03:00]}  e5 {[%clk 0:02:59]} 2. Nf3 {[%clk 0:03:00]}  Nc6 {[%clk 0:02:59]} 3. Bb5 {[%clk 0:03:01]}  a6 {[%clk 0:02:59]} 4. Ba4 {[%clk 0:03:00]}  Nf6 {[%clk 0:02:55]} 5. O-O {[%clk 0:03:00]}  b5 {[%clk 0:02:54]} 6. Bb3 {[%clk 0:03:00]}  Be7 {[%clk 0:02:54]} 7. d3 {[%clk 0:03:01]}  O-O {[%clk 0:02:51]} 8. c3 {[%clk 0:03:01]}  d5 {[%clk 0:02:50]} 9. exd5 {[%clk 0:03:02]}  Nxd5 {[%clk 0:02:49]} 10. Re1 {[%clk 0:03:03]}  Nf6 {[%clk 0:02:01]} 11. h3 {[%clk 0:02:50]}  Nd7 {[%clk 0:01:08]} 12. Nbd2 {[%clk 0:02:48]}  Bb7 {[%clk 0:01:00]} 13. Ne4 {[%clk 0:02:46]}  h6 {[%clk 0:00:51]} 14. Ng3 {[%clk 0:02:27]}  Kh7 {[%clk 0:00:49]} 15. Nf5 {[%clk 0:02:24]}  Bf6 {[%clk 0:00:30]} 16. d4 {[%clk 0:02:23]}  exd4 {[%clk 0:00:24]} 17. cxd4 {[%clk 0:02:23]}  Nb6 {[%clk 0:00:17]} 18. Bc2 {[%clk 0:02:21]}  Kh8 {[%clk 0:00:16]} 19. Qd2 {[%clk 0:02:20]}  Nc4 {[%clk 0:00:13]} 20. Qf4 {[%clk 0:02:20]}  Nb4 {[%clk 0:00:11]} 21. Bb1 {[%clk 0:02:19]}  Nd5 {[%clk 0:00:11]} 22. Qg4 {[%clk 0:02:16]}  Bc8 {[%clk 0:00:09]} 23. Qh5 {[%clk 0:02:14]}  Bxf5 {[%clk 0:00:08]} 24. Qxf5 {[%clk 0:02:15]}  g6 {[%clk 0:00:08]} 25. Qg4 {[%clk 0:02:12]}  h5 {[%clk 0:00:08]} 26. Qg3 {[%clk 0:02:11]}  Qd7 {[%clk 0:00:08]} 27. b3 {[%clk 0:02:10]}  Ncb6 {[%clk 0:00:08]} 28. Ne5 {[%clk 0:02:10]}  Bxe5 {[%clk 0:00:07]} 29. dxe5 {[%clk 0:02:08]}  Rfe8 {[%clk 0:00:07]} 30. Bb2 {[%clk 0:02:07]}  Re6 {[%clk 0:00:07]} 31. Be4 {[%clk 0:02:05]}  Rae8 {[%clk 0:00:07]} 32. Rad1 {[%clk 0:02:05]}  c6 {[%clk 0:00:08]} 33. Bd4 {[%clk 0:02:03]}  Qe7 {[%clk 0:00:08]} 34. f4 {[%clk 0:02:02]}  c5 {[%clk 0:00:08]} 35. Bb2 {[%clk 0:02:01]}  Rd8 {[%clk 0:00:08]} 36. f5 {[%clk 0:02:00]}  gxf5 {[%clk 0:00:06]} 37. Bxf5 {[%clk 0:02:01]}  Nb4 {[%clk 0:00:06]} 38. Rxd8+ {[%clk 0:01:59]}  Qxd8 {[%clk 0:00:06]} 39. Bxe6 {[%clk 0:02:00]}  fxe6 {[%clk 0:00:07]} 40. Qf3 {[%clk 0:01:59]}  Nd3 {[%clk 0:00:07]} 41. Rd1 {[%clk 0:01:55]}  c4 {[%clk 0:00:06]} 42. Qxh5+ {[%clk 0:01:55]}  Kg7 {[%clk 0:00:05]} 43. Rf1 {[%clk 0:01:56]} 1-0


[Site "https://www.chess.com"]

[Event "Titled Tuesday Blitz March 08 Late 2022"]
[White "Salimova, Nurgyul"]
[Black "Prohorov, Olexandr"]
[WhiteFideId "2915138"]
[BlackFideId "14105578"]
[WhiteElo "2185"]
[BlackElo "1993"]
[Result "1-0"]
[Round "02"]
[TimeControl "180+1"]
[Date "2022.03.09"]
[WhiteClock "0:00:05"]
[BlackClock "0:00:02"]

1. e4 {[%clk 0:03:00]}  c5 {[%clk 0:02:58]} 2. Nf3 {[%clk 0:03:00]}  e6 {[%clk 0:02:58]} 3. d4 {[%clk 0:02:59]}  cxd4 {[%clk 0:02:59]} 4. Nxd4 {[%clk 0:03:00]}  Qb6 {[%clk 0:03:00]} 5. Nb3 {[%clk 0:02:55]}  Nf6 {[%clk 0:02:59]} 6. Be3 {[%clk 0:02:45]}  Qc7 {[%clk 0:02:59]} 7. Bd3 {[%clk 0:02:39]}  d5 {[%clk 0:02:58]} 8. N1d2 {[%clk 0:02:31]}  Nc6 {[%clk 0:02:54]} 9. O-O {[%clk 0:02:27]}  Be7 {[%clk 0:02:48]} 10. c4 {[%clk 0:02:22]}  dxe4 {[%clk 0:02:37]} 11. Nxe4 {[%clk 0:02:20]}  O-O {[%clk 0:02:34]} 12. Qe2 {[%clk 0:01:48]}  b6 {[%clk 0:02:30]} 13. Rac1 {[%clk 0:01:33]}  Ba6 {[%clk 0:01:52]} 14. Nc3 {[%clk 0:01:22]}  Nb4 {[%clk 0:01:48]} 15. Nb5 {[%clk 0:01:17]}  Bxb5 {[%clk 0:01:40]} 16. cxb5 {[%clk 0:01:18]}  Qb7 {[%clk 0:01:37]} 17. Bb1 {[%clk 0:01:17]}  Rac8 {[%clk 0:01:32]} 18. Nd4 {[%clk 0:01:14]}  Bc5 {[%clk 0:01:00]} 19. a3 {[%clk 0:01:13]}  Nbd5 {[%clk 0:01:00]} 20. Nc6 {[%clk 0:00:41]}  Nxe3 {[%clk 0:00:41]} 21. fxe3 {[%clk 0:00:42]}  Nd5 {[%clk 0:00:41]} 22. Rf3 {[%clk 0:00:37]}  g6 {[%clk 0:00:24]} 23. b4 {[%clk 0:00:35]}  Bd6 {[%clk 0:00:23]} 24. e4 {[%clk 0:00:33]}  Ne7 {[%clk 0:00:18]} 25. e5 {[%clk 0:00:31]}  Bb8 {[%clk 0:00:16]} 26. Qe4 {[%clk 0:00:21]}  a6 {[%clk 0:00:07]} 27. a4 {[%clk 0:00:18]}  axb5 {[%clk 0:00:07]} 28. axb5 {[%clk 0:00:19]}  Nxc6 {[%clk 0:00:06]} 29. bxc6 {[%clk 0:00:20]}  Qe7 {[%clk 0:00:06]} 30. b5 {[%clk 0:00:18]}  Rfd8 {[%clk 0:00:03]} 31. Re1 {[%clk 0:00:18]}  Rd5 {[%clk 0:00:03]} 32. Qf4 {[%clk 0:00:17]}  Rcd8 {[%clk 0:00:03]} 33. h4 {[%clk 0:00:15]}  Rd4 {[%clk 0:00:04]} 34. Be4 {[%clk 0:00:13]}  Bc7 {[%clk 0:00:03]} 35. h5 {[%clk 0:00:13]}  Qc5 {[%clk 0:00:02]} 36. Qxf7+ {[%clk 0:00:10]}  Kh8 {[%clk 0:00:02]} 37. Qf6+ {[%clk 0:00:09]}  Kg8 {[%clk 0:00:01]} 38. Qf7+ {[%clk 0:00:10]}  Kh8 {[%clk 0:00:02]} 39. Qf6+ {[%clk 0:00:06]}  Kg8 {[%clk 0:00:02]} 40. Kh1 {[%clk 0:00:05]} 1-0


[Site "https://www.chess.com"]